Workbook

Sheet מחשבון הלוואות
B2: מחשבון הלוואה | G2: 50,000 ₪ | L2: 4067300.00%
B3: ללימודים גבוהים
B5: מומלץ שסך ההחזרים החודשיים של הלוואות הסטודנטים שלך לא יעלו על 8% מהמשכורת השנתית שלך בשנה הראשונה.
C7: התשלום החודשי המשולב הנוכחי שלך הוא: | F7: =CollegeLoans[[#Totals],[תשלום חודשי נוכחי]] -> 328.59 ₪ | I7: התשלום החודשי המשולב המתוכנן שלך הוא: | M7: =CollegeLoans[[#Totals],[תשלום מתוכנן]] -> 328.59 ₪
C8: אחוז מההכנסה השנתית: | F8: =CollegeLoans[[#Totals],[תשלום חודשי נוכחי]]/EstimatedMonthlySalary -> 7.89% | I8: אחוז מההכנסה השנתית: | M8: =CollegeLoans[[#Totals],[תשלום מתוכנן]]/EstimatedMonthlySalary -> 7.89%
C11: פרטי הלוואה כלליים | G11: נתוני החזר ההלוואה | J11: פרטי תשלום
C12: מספר הלוואה | D12: מלווה | E12: סכום ההלוואה | F12: שיעור ריבית שנתי | G12: תאריך התחלה | H12: משך (שנים) | I12: תאריך סיום | J12: תשלום חודשי נוכחי | K12: סך הריבית | L12: תשלום מתוכנן | M12: תשלום שנתי
C13: 10998M88 | D13: מלווה 1 | E13: 10,000.00 ₪ | F13: 5.00% | G13: 4063400.00% | H13: 10 | I13: =IF(AND(CollegeLoans[[#This Row],[תאריך התחלה]]>0,CollegeLoans[[#This Row],[משך (שנים)]]>0),EDATE(CollegeLoans[[#This Row],[תאריך התחלה]],CollegeLoans[[#This Row],[משך (שנים)]]*12),"") -> 4428700.00% | J13: =IF(AND(LoanStartLToday,COUNT(CollegeLoans[[#This Row],[סכום ההלוואה]:[משך (שנים)]])=4,CollegeLoans[[#This Row],[תאריך התחלה]]<TODAY()),PMT(CollegeLoans[[#This Row],[שיעור ריבית שנתי]]/12,CollegeLoans[[#This Row],[משך (שנים)]]*12,-CollegeLoans[[#This Row],[סכום ההלוואה]],0,0),"") -> 106.07 ₪ | K13: =IFERROR((CollegeLoans[[#This Row],[תשלום מתוכנן]]*(CollegeLoans[[#This Row],[משך (שנים)]]*12))-CollegeLoans[[#This Row],[סכום ההלוואה]],"") -> 2,727.86 ₪ | L13: =IF(COUNTA(CollegeLoans[[#This Row],[סכום ההלוואה]:[משך (שנים)]])<>4,"",PMT(CollegeLoans[[#This Row],[שיעור ריבית שנתי]]/12,CollegeLoans[[#This Row],[משך (שנים)]]*12,-CollegeLoans[[#This Row],[סכום ההלוואה]],0,0)) -> 106.07 ₪ | M13: =IFERROR(CollegeLoans[[#This Row],[תשלום מתוכנן]]*12,"") -> 1,272.79 ₪
C14: 20987N87 | D14: מלווה 2 | E14: 8,000.00 ₪ | F14: 5.00% | G14: 4066400.00% | H14: 10 | I14: =IF(AND(CollegeLoans[[#This Row],[תאריך התחלה]]>0,CollegeLoans[[#This Row],[משך (שנים)]]>0),EDATE(CollegeLoans[[#This Row],[תאריך התחלה]],CollegeLoans[[#This Row],[משך (שנים)]]*12),"") -> 4431700.00% | J14: =IF(AND(LoanStartLToday,COUNT(CollegeLoans[[#This Row],[סכום ההלוואה]:[משך (שנים)]])=4,CollegeLoans[[#This Row],[תאריך התחלה]]<TODAY()),PMT(CollegeLoans[[#This Row],[שיעור ריבית שנתי]]/12,CollegeLoans[[#This Row],[משך (שנים)]]*12,-CollegeLoans[[#This Row],[סכום ההלוואה]],0,0),"") -> 84.85 ₪ | K14: =IFERROR((CollegeLoans[[#This Row],[תשלום מתוכנן]]*(CollegeLoans[[#This Row],[משך (שנים)]]*12))-CollegeLoans[[#This Row],[סכום ההלוואה]],"") -> 2,182.29 ₪ | L14: =IF(COUNTA(CollegeLoans[[#This Row],[סכום ההלוואה]:[משך (שנים)]])<>4,"",PMT(CollegeLoans[[#This Row],[שיעור ריבית שנתי]]/12,CollegeLoans[[#This Row],[משך (שנים)]]*12,-CollegeLoans[[#This Row],[סכום ההלוואה]],0,0)) -> 84.85 ₪ | M14: =IFERROR(CollegeLoans[[#This Row],[תשלום מתוכנן]]*12,"") -> 1,018.23 ₪
C15: 36785LM | D15: מלווה 3 | E15: 6,000.00 ₪ | F15: 4.50% | G15: 4096900.00% | H15: 10 | I15: =IF(AND(CollegeLoans[[#This Row],[תאריך התחלה]]>0,CollegeLoans[[#This Row],[משך (שנים)]]>0),EDATE(CollegeLoans[[#This Row],[תאריך התחלה]],CollegeLoans[[#This Row],[משך (שנים)]]*12),"") -> 4462100.00% | J15: =IF(AND(LoanStartLToday,COUNT(CollegeLoans[[#This Row],[סכום ההלוואה]:[משך (שנים)]])=4,CollegeLoans[[#This Row],[תאריך התחלה]]<TODAY()),PMT(CollegeLoans[[#This Row],[שיעור ריבית שנתי]]/12,CollegeLoans[[#This Row],[משך (שנים)]]*12,-CollegeLoans[[#This Row],[סכום ההלוואה]],0,0),"") -> 62.18 ₪ | K15: =IFERROR((CollegeLoans[[#This Row],[תשלום מתוכנן]]*(CollegeLoans[[#This Row],[משך (שנים)]]*12))-CollegeLoans[[#This Row],[סכום ההלוואה]],"") -> 1,461.97 ₪ | L15: =IF(COUNTA(CollegeLoans[[#This Row],[סכום ההלוואה]:[משך (שנים)]])<>4,"",PMT(CollegeLoans[[#This Row],[שיעור ריבית שנתי]]/12,CollegeLoans[[#This Row],[משך (שנים)]]*12,-CollegeLoans[[#This Row],[סכום ההלוואה]],0,0)) -> 62.18 ₪ | M15: =IFERROR(CollegeLoans[[#This Row],[תשלום מתוכנן]]*12,"") -> 746.20 ₪
C16: 765R43 | D16: מלווה 4 | E16: 4,000.00 ₪ | F16: 5.00% | G16: 4103000.00% | H16: 5 | I16: =IF(AND(CollegeLoans[[#This Row],[תאריך התחלה]]>0,CollegeLoans[[#This Row],[משך (שנים)]]>0),EDATE(CollegeLoans[[#This Row],[תאריך התחלה]],CollegeLoans[[#This Row],[משך (שנים)]]*12),"") -> 4285600.00% | J16: =IF(AND(LoanStartLToday,COUNT(CollegeLoans[[#This Row],[סכום ההלוואה]:[משך (שנים)]])=4,CollegeLoans[[#This Row],[תאריך התחלה]]<TODAY()),PMT(CollegeLoans[[#This Row],[שיעור ריבית שנתי]]/12,CollegeLoans[[#This Row],[משך (שנים)]]*12,-CollegeLoans[[#This Row],[סכום ההלוואה]],0,0),"") -> 75.48 ₪ | K16: =IFERROR((CollegeLoans[[#This Row],[תשלום מתוכנן]]*(CollegeLoans[[#This Row],[משך (שנים)]]*12))-CollegeLoans[[#This Row],[סכום ההלוואה]],"") -> 529.10 ₪ | L16: =IF(COUNTA(CollegeLoans[[#This Row],[סכום ההלוואה]:[משך (שנים)]])<>4,"",PMT(CollegeLoans[[#This Row],[שיעור ריבית שנתי]]/12,CollegeLoans[[#This Row],[משך (שנים)]]*12,-CollegeLoans[[#This Row],[סכום ההלוואה]],0,0)) -> 75.48 ₪ | M16: =IFERROR(CollegeLoans[[#This Row],[תשלום מתוכנן]]*12,"") -> 905.82 ₪
C17: סכומים | E17: =SUBTOTAL(109,CollegeLoans[סכום ההלוואה]) -> 28,000.00 ₪ | J17: =SUBTOTAL(109,CollegeLoans[תשלום חודשי נוכחי]) -> 328.59 ₪ | K17: =SUBTOTAL(109,CollegeLoans[סך הריבית]) -> 6,901.21 ₪ | L17: =SUBTOTAL(109,CollegeLoans[תשלום מתוכנן]) -> 328.59 ₪ | M17: =SUBTOTAL(109,CollegeLoans[תשלום שנתי]) -> 3,943.03 ₪
C18: ממוצעים | E18: =AVERAGE(CollegeLoans[סכום ההלוואה]) -> 7,000.00 ₪ | F18: =AVERAGE(CollegeLoans[שיעור ריבית שנתי]) -> 4.88% | K18: =AVERAGE(CollegeLoans[סך הריבית]) -> 1,725.30 ₪ | M18: =AVERAGE(CollegeLoans[תשלום שנתי]) -> 985.76 ₪
K20: סך החזר ההלוואה המשולב: | M20: =CollegeLoans[[#Totals],[סכום ההלוואה]]+CollegeLoans[[#Totals],[סך הריבית]] -> 34,901.21 ₪
K22: הכנסה חודשית משוערת לאחר סיום הלימודים: | M22: =(EstimatedAnnualSalary/12) -> 4,166.67 ₪
